Workbook

Sheet CONSOLIDAÇÃO
B1: NOME PLANILHA | C1: ABA | D1: OBJETIVO DE APRENDIZAGEM | E1: CLAREZA | F1: PERTINÊNCIA | G1: COMENTÁRIO
B2: Ensino Médio - Língua Estrangeira.xlsx | C2: EM - LÍNGUA ESTRANGEIRA | D2: (EM20LI10) Interagir por meio de textos em língua estrangeira sobre questões da atualidade, apropriandose de recursos linguístico-discursivos e culturais para relacionar modos de dizer com a construção de mitos e verdades. | E2: X | G2: Não houve uma compreensão imediata do que está proposto neste objetivo, principalmente por causa do termo "modo de dizer".
B3: Ensino Médio - Língua Estrangeira.xlsx | C3: EM - LÍNGUA ESTRANGEIRA | D3: (EM20LI12) Interagir por meio de textos em língua estrangeira em diferentes áreas do conhecimento, apropriando-se de recursos linguístico-discursivos e culturais para relacionar modos de dizer com a construção de conhecimento e de valores científicos e éticos. | E3: X | G3: Não houve muita clareza no entendimento deste objetivo.
B4: Ensino Médio - Língua Estrangeira.xlsx | C4: EM - LÍNGUA ESTRANGEIRA | D4: (EM20LI07) Interagir por meio de textos artístico-literários, apropriando-se de recursos artísticos, literários, linguístico-discursivos e culturais para compreender formas de representar outros mundos possíveis e se posicionar frente a valores éticos e estéticos que os constituem. | F4: X | G4: A ideia expressada neste objetivo de aprendizagem poderia ser fundida no objetivo 05.
B5: Ensino Médio - Educação física.xlsx | C5: EM - EDUCAÇÃO FÍSICA | D5: (EM40LI01) Experimentar e recriar uma ou mais modalidades dos esportes de combate, bem como outros esportes com potencial para o envolvimento em práticas de lazer. | E5: X | G5: MELHORAR REDAÇÃO LEVANDO EM CONSIDERAÇÃO A FORMAÇÃO DO PROFESSOR.
B6: Ensino Médio - Educação física.xlsx | C6: EM - EDUCAÇÃO FÍSICA | D6: (EM40LI25) Reconhecer a influência dos elementos de desempenho esportivo na atuação de um atleta ou equipe, nas modalidades escolhidas pelo coletivo da escola, para praticá-las de forma proficiente. | E6: X | G6: REDAÇÃO CONTINUA SENDO REPETIDA EM ITENS DIFERENTES
B7: Ensino Médio - Educação física.xlsx | C7: EM - EDUCAÇÃO FÍSICA | D7: (EM40LI28) Analisar criticamente a relação entre esporte e cultura de massa (ex.: mídia, megaeventos, “merchandising”, entretenimento, espetáculo). | E7: X | G7: FAZER A JUNÇÃO DO ITEM (EM40LI26)
B8: Ensino Médio - Educação física.xlsx | C8: EM - EDUCAÇÃO FÍSICA | D8: (EM40LI31) Organizar-se coletivamente para propor e gerar alternativas, bem como reivindicar locais apropriados e seguros, para o acesso da comunidade à prática esportiva. | E8: X | G8: CLAREZA NA REDAÇÃO "COMUNIDADE ESCOLAR"
B9: Ensino Médio - Educação física.xlsx | C9: EM - EDUCAÇÃO FÍSICA | D9: (EM40LI30) Conhecer os espaços de atuação profissional no universo das práticas esportivas. | F9: X | G9: DEVIDO A CARGO HORARIA REDUZIDA O ASSUNTO NÃO É PERTINENTE
B10: Ensino Fund. II - Matemática.xlsx | C10: MATEMÁTICA. | D10: (EF08MT01) Reconhecer as condições necessárias e suficientes para obter triângulos congruentes e aplicar esse conhecimento em demonstrações simples, como de propriedades dos quadriláteros. | E10: X | G10: O objetivo não está claro quanto ao uso dos triângulos congruentes nas demonstrações das propriedades dos quadriláteros.
B11: Ensino Fund. II - Matemática.xlsx | C11: MATEMÁTICA. | D11: (EF09MT04) Determinar o ponto médio de um segmento de reta e a distância entre dois pontos quaisquer no plano cartesiano, sem o uso de fórmulas, utilizando esse conhecimento para calcular medidas de perímetros e áreas de figuras planas, entre outros. | E11: X | G11: O objetivo não está claro quanto a maneira que será feito o cálculo da distância entre dois pontos quaisquer sem o uso de fórmulas. Poderia usar instrumentos de desenho?
B12: Ensino Fund. II - Matemática.xlsx | C12: MATEMÁTICA. | D12: (EF09MT06) Reconhecer e empregar unidades usadas para expressar medidas muito grandes ou muito pequenas, para compreender ideias associadas à distância entre planetas e sistemas solares, tamanho de células em seres vivos, capacidade de armazenamento de computadores, entre outros. | E12: X | G12: O objetivo poderia explicitar o fato de que, ao se trabalhar a capacidade de armazenamento, o professor usará potências de base 2 e não de base 10.
B13: Ensino Fund. II - Matemática.xlsx | C13: MATEMÁTICA. | D13: (EF09MT07) Resolver e elaborar problemas envolvendo medidas de volumes de prismas e de cilindros retos, inclusive com uso de expressões de cálculo, em situações cotidianas, como determinar a potência do ar condicionado necessária para refrigerar um ambiente, entre outros. | E13: X | G13: O objetivo poderia acrescentar em sua redação a expressão "por exemplo" antes de "como determinar a potência do ar condicionado necessária para refrigerar um ambiente, entre."
B14: Ensino Fund. II - Matemática.xlsx | C14: MATEMÁTICA. | D14: (EF06MT18) Reconhecer o sistema de numeração decimal como o que prevaleceu no mundo ocidental, destacar semelhanças e diferenças com outros sistemas e compreender suas principais características (base, unidade de contagem, valor posicional e função do zero), utilizando a composição e decomposição de números naturais, como por exemplo, 4357 = 4 x 103 + 3 x 102 + 5 x 101 + 7 x 100. | E14: X | G14: A escrita do objetivo na parte final, ao decompor o número 4357, está feita de maneira equivocada quanto à digitação dos expoentes das potências de base 10.
B15: Ensino Fund. II - Matemática.xlsx | C15: MATEMÁTICA. | D15: (EF06MT21) Resolver e elaborar problemas que envolvam a partilha de uma quantidade em partes desiguais, envolvendo relações aditivas e multiplicativas. | E15: X | G15: A ideia do objetivo não está clara, para facilitar poderia ser acrescentado um exemplo.
B16: Ensino Fund. II - Matemática.xlsx | C16: MATEMÁTICA. | D16: (EF07MT21) Resolver e elaborar problemas que possam ser representados por equações polinomiais de 1º grau, redutíveis à forma , iniciando a compreensão da linguagem algébrica. | E16: X | G16: No lugar de usar as caixinhas, substituir por um exemplo do cotidiano com variáveis.
B17: Ensino Fund. II - Matemática.xlsx | C17: MATEMÁTICA. | D17: (EF08MT15) Resolver e elaborar problemas que possam ser representados por equações polinomiais de 2º grau do tipo . | E17: X | G17: Esclarecer que tipo de equação do segundo grau será trabalhada, substituindo o exemplo com as "caixinhas".
B18: Ensino Fund. II - Matemática.xlsx | C18: MATEMÁTICA. | D18: (EF06MT10) Identificar, em gráficos de barras ou colunas (simples ou múltiplas) divulgados pela mídia, as variáveis e seus valores e os elementos constitutivos do gráfico (título, eixos, legenda e fonte), interpretando-os para propor textos escritos que apresentem os resultados da pesquisa. | F18: X | G18: Poderia ser acrescentada ao objetivo a ideia de que o aluno, além de identificar informações em gráficos de barras e colunas, pudesse também construir esses gráficos a partir de informações coletadas.
B19: Ensino Médio - Física.xlsx | C19: EM - FÍSICA | D19: (EM14CN04) Construir equipamentos simples de sentido prático ou lúdico, a partir de componentes de fácil acesso, explicitando os fenômenos elétricos e magnéticos envolvidos em cada parte do seu arranjo. | F19: X | G19: INCLUIR NO OBJETIVO O EIXO PROCESSO E PRATICAS DE INVESTIGAÇÃO
B20: Ensino Médio - Física.xlsx | C20: EM - FÍSICA | D20: (EM12CN07) Construir equipamentos simples, como aquecedor solar caseiro, fogão solar ou protótipo de máquina térmica, usando componentes de fácil obtenção como canos plásticos, espelhos ou sucatas, explicitando a compreensão dos fenômenos envolvidos. | F20: X | G20: INCLUIR NO OBJETIVO O EIXO PROCESSO E PRATICAS DE INVESTIGAÇÃO
B21: Ensino Fund. II - Língua Portuguesa.xlsx | C21: LÍNGUA PORTUGUESA | D21: (EF08LP13) Reconhecer a função da hierarquização de tópicos em textos didáticoexpositivos. | E21: X
B22: Ensino Fund. II - Língua Portuguesa.xlsx | C22: LÍNGUA PORTUGUESA | D22: (EF06LP24) Empregar vírgula para separar orações dentro do período. | F22: X
B23: Ensino Fund. II - Geografia.xlsx | C23: CIÊN. HUMANAS GEOGRAFIA | D23: (EF06GE07) Analisar como diferentes linguagens apresentam fatos, fenômenos e processos naturais e sociais [CD] [EA]. | E23: X | G23: Falta o tema do objetivo.
B24: Ensino Fund. II - Geografia.xlsx | C24: CIÊN. HUMANAS GEOGRAFIA | D24: (EF06GE02) Investigar teorias sobre a origem da Terra, identificando e caracterizando movimentos do planeta e dinâmicas do relevo, solos, clima, vegetação e hidrografia na configuração das paisagens. [EA]. | F24: X | G24: "Investigar teorias sobre a origem da terra" não pertence ao componente geografia, e sim, de ciências.
B25: Ensino Fund. II - Ensino Religioso.xlsx | C25: ENSINO RELIGIOSO | D25: (EF09ER01) Conhecer concepções de corporeidades, pessoa e pessoalidades em tradições religiosas e filosofias de vida. [CIA] [DHC] | E25: X | G25: Conhecer concepções de corporeidade e definição de pessoa e de perssoalidades em tradições religiosas...
B26: Ensino Fund. II - Ensino Religioso.xlsx | C26: ENSINO RELIGIOSO | D26: (EF08ER07) Argumentar sobre as implicações da atuação de instituições religiosas em um Estado laico e em uma sociedade diversa culturalmente. [CIA] [CD] [DHC] | E26: X | G26: Substituir o termo argumentar por analisar as implicações da atuação de instituições religiosas em um Estado Laico...
B27: Ensino Fund. II - Ensino Religioso.xlsx | C27: ENSINO RELIGIOSO | D27: (EF07ER10) Analisar como as religiões e seus líderes atuam na sociedade, na política, na saúde, na educação, nos projetos e movimentos sociais. [ES] [CIA] [CD] [DHC] [EA] | E27: X | G27: Analisar a relação das religiões e dos seus líderes no contexto social, político, educacional e dos movimentos sociais no país.
B28: Ensino Médio - Filosofia.xlsx | C28: EM - FILOSOFIA | D28: (EM42CH02) Refletir sobre as ideias de comprovação científica e conhecimento científico, em suas aspirações à superação do campo da mera opinião. | E28: X | G28: Falta identificar com quais eixos está dialogando.
B29: Ensino Médio - Filosofia.xlsx | C29: EM - FILOSOFIA | D29: (EM42CH03) Refletir sobre o papel das ciências na formação das culturas contemporâneas, com atenção às questões éticas e política pertinentes a tais processos formativos. (ES, CIA, CD, DHC, EA) | E29: X | G29: política ou políticas
B30: Ensino Médio - Sociologia.xlsx | C30: EM - SOCIOLOGIA | D30: (EM33CH01) Identificar processos de modernização econômica, política e social. [ES] | E30: X
B31: Ensino Médio - Sociologia.xlsx | C31: EM - SOCIOLOGIA | D31: (EM31CH02) Identificar a relação entre fenômenos sociais e contextos históricos | E31: X
B32: Ensino Médio - Sociologia.xlsx | C32: EM - SOCIOLOGIA | D32: (EM33CH03) Relacionar processos de modernização e formação do individuo moderno. | E32: X | G32: Falta uma melhor compreensão em relação ao conceito de indívíduo moderno (refere-se a concepção de modernidade iluminista ou a acessibilidade as novas tecnologias?)
B33: Ensino Médio - Sociologia.xlsx | C33: EM - SOCIOLOGIA | D33: (EM31CH04) Reconhecer a Sociologia como modo de desnaturalizar e estranhar estilos de vida, valores e condutas sociais. | E33: X | G33: Alterar redação. Sugestão: Reconhecer a Sociologia como modo de desnaturização das relações e valores sociais
B34: Ensino Médio - Sociologia.xlsx | C34: EM - SOCIOLOGIA | D34: (EM31CH05) Relacionar trajetórias de vida e processos de socialização. | E34: X | G34: Incorporar no objetivo de aprendizagem M31CH06
B35: Ensino Médio - Sociologia.xlsx | C35: EM - SOCIOLOGIA | D35: (EM31CH06) Analisar o papel de diferentes instituições sociais, tais como família, escola e instituições religiosas, nos processos de socialização | E35: X | G35: Incorporar o EM31CH05. Sugestão: Relacionar a trajetória de vida a partir da análise do papel das diferentes instituições sociais (família, escola, instituições religiosas etc)
B36: Ensino Médio - Sociologia.xlsx | C36: EM - SOCIOLOGIA | D36: (EM31CH08) Identificar como marcadores sociais as dimensões étnico-raciais, religiosa, regional, entre outras. [CIA] | E36: X | G36: Alterar redação. Sugestão: Identificar as dimensões étnicas e suas especificidades
B37: Ensino Médio - Sociologia.xlsx | C37: EM - SOCIOLOGIA | D37: (EM32CH08) Relacionar desigualdade social a manifestações da violência, incluindo a aquela decorrente da injustiça ambiental. [EA] | E37: X | G37: Adicionar o objetivo EM32CH06. Sugestão: Relacionar formas de discriminação e de desigualdade social a manifestações de violência, incluindo a aquela decorrente da injustiça ambiental
B38: Ensino Médio - Sociologia.xlsx | C38: EM - SOCIOLOGIA | D38: (EM31CH09) Identificar o trabalho e a ocupação como marcadores sociais. | E38: X | G38: Alterar redação: Sugestão: Identificar as relações que envolvem o mundo do trabalho
B39: Ensino Médio - Sociologia.xlsx | C39: EM - SOCIOLOGIA | D39: (EM32CH10) Analisar, em perspectiva histórica, os movimentos sociais baseados em classes sociais, como os operários e trabalhistas | E39: X | G39: Alterar redação. Sugestão: Analisar, em perspectiva histórica, os movimentos sociais baseados em classes sociais, tanto rural quanto urbano
B40: Ensino Médio - Sociologia.xlsx | C40: EM - SOCIOLOGIA | D40: (EM33CH10) Identificar novas formas de participação política e de exercício da cidadania. | E40: X | G40: Incorporar neste objetivo de aprendizagem a unidade curricular EM33CH09
B41: Ensino Médio - Sociologia.xlsx | C41: EM - SOCIOLOGIA | D41: (EM31CH11) Relacionar classe, “status” social e padrões de consumo | E41: X | G41: Alterar redação. Sugestão: Relacionar classe, "status" social e consumismo numa sociedade de mercado
B42: Ensino Médio - Sociologia.xlsx | C42: EM - SOCIOLOGIA | D42: (EM32CH02) Aplicar a noção de alteridade adotada pela perspectiva sócio-antropológica. | F42: X
B43: Ensino Médio - Sociologia.xlsx | C43: EM - SOCIOLOGIA | D43: (EM32CH03) Refletir sobre as regras de convivência com o outro em diferentes espaços de sociabilidade como a escola, a vizinhança e a cidade. | F43: X | G43: Este objetivo é melhor fundamentado na disciplina de Filosofia a partir de reflexões como moral, ética, valores etc.
B44: Ensino Médio - Sociologia.xlsx | C44: EM - SOCIOLOGIA | D44: (EM32CH04) Identificar formas de cooperação em diferentes dimensões da vida social, tais como família, escola, trabalho, grupos juvenis, entre outros. | F44: X | G44: Este objetivo estabelece relações temáticas com a Unidade Curricular I, especificamnete no objetivo EM31CH06
B45: Ensino Médio - Sociologia.xlsx | C45: EM - SOCIOLOGIA | D45: (EM32CH06) Relacionar formas de discriminação e formas de manifestação de violência. [DHC] | F45: X | G45: Incorporar no objetivo de aprendizagem EM32CH08
B46: Ensino Médio - Sociologia.xlsx | C46: EM - SOCIOLOGIA | D46: (EM33CH09) Identificar as dimensões civil, politica e social do exercício da cidadania. | F46: X | G46: Fundir este objetivo no EM33CH10
B47: Ensino Fund. I (4º e 5º anos).xlsx | C47: MATEMÁTICA | D47: (EF05MT01) Localizar representações de objetos no plano, utilizando mapas, batalha naval, células em planilhas eletrônicas, coordenadas geográficas, para desenvolver as primeiras noções de coordenadas cartesianas. | E47: X
B48: Ensino Fund. I (4º e 5º anos).xlsx | C48: MATEMÁTICA | D48: (EF04MT04) Reconhecer simetria de reflexão em figuras e em pares de figuras geométricas planas e utilizála na construção de figuras congruentes, com o uso de malhas quadriculadas ou de tecnologias digitais. | E48: X | G48: Substituir simetria de reflexão por com uso do reflexo.
B49: Ensino Fund. I (4º e 5º anos).xlsx | C49: MATEMÁTICA | D49: (EF05MT06) Compreender que figuras de mesmo perímetro podem ter medidas diferentes de áreas e que, da mesma forma, figuras de áreas iguais podem ter perímetros diferentes. | E49: X | G49: Compreender/relacionar as medidas de área iguais podem ter massas diferentes ou vice-versa. Medidas de massa iguais com áraeas diferentes.
B50: Ensino Fund. I (4º e 5º anos).xlsx | C50: MATEMÁTICA | D50: (EF04MT09) Resolver e elaborar problemas que envolvam situações de compra, venda e formas de pagamento, utilizando termos como troco, lucro, prejuízo, desconto, enfatizando o consumo ético, consciente e responsável. | E50: X | G50: Acrescentar no 5º ano a ideia de percentuais.
B51: Ensino Fund. I (4º e 5º anos).xlsx | C51: MATEMÁTICA | D51: (EF04MT15) Compreender e usar as relações entre adição e a subtração, bem como entre a multiplicação e a divisão, para ampliar as estratégias de cálculo. | E51: X | G51: Compreender e usar as relações entre as operações.
B52: Ensino Fund. I (4º e 5º anos).xlsx | C52: MATEMÁTICA | D52: (EF04MT20) Identificar grupos de números para os quais as divisões por um determinado número resultem em restos iguais, para perceber que há regularidades nas divisões com resto, contribuindo para o desenvolvimento da habilidade de cálculo mental. | E52: X | G52: Repetir no 5º ano.
B53: Ensino Fund. I (4º e 5º anos).xlsx | C53: MATEMÁTICA | D53: (EF04MT03) Reconhecer ângulos retos e não retos, por meio da construção de figuras poligonais com o uso de régua e esquadros ou tecnologias digitais. | F53: X | G53: O uso de régua e esquadros na construção de figuras poligonais do 4º ano.
B54: Ensino Fund. I (4º e 5º anos).xlsx | C54: MATEMÁTICA | D54: (EF04MT20) Identificar grupos de números para os quais as divisões por um determinado número resultem em restos iguais, para perceber que há regularidades nas divisões com resto, contribuindo para o desenvolvimento da habilidade de cálculo mental. | F54: X | G54: Repetir no 5º ano.
B55: Ensino Fund. I (4º e 5º anos).xlsx | C55: CIÊNCIAS | D55: (EF05CI05) Avaliar impactos ambientais da geração de energia em usinas termelétricas e hidrelétricase relacionar variações de preços a períodos de estiagem. | E55: X | G55: Substituir AVALIAR por REFLETIR.
B56: Ensino Fund. I (4º e 5º anos).xlsx | C56: CIÊNCIAS | D56: (EF05CI08) Relacionar clima, ciclos biológicos e processos produtivos com as posições relativas entre Terra, Lua e Sol. | E56: X
B57: Ensino Fund. I (4º e 5º anos).xlsx | C57: CIÊNCIAS | D57: (EF05CI05) Avaliar impactos ambientais da geração de energia em usinas termelétricas e hidrelétricase relacionar variações de preços a períodos de estiagem. | F57: X | G57: Substituir AVALIAR por REFLETIR.
B58: Ensino Fund. I (4º e 5º anos).xlsx | C58: CIÊNCIAS | F58: X | G58: Substituir IDENTIFICAR/CARACTERIZAR por RECONHECER.
B59: Ensino Fund. I (4º e 5º anos).xlsx | C59: CIÊN. HUMANAS HISTÓRIA | D59: (EF05HI01) Reconhecer a historicidade como diferença fundamental entre o homem e os demais animais. | E59: X | G59: Unificar os objetivos EF05HI01 e EF05HI02.
B60: Ensino Fund. I (4º e 5º anos).xlsx | C60: CIÊN. HUMANAS HISTÓRIA | D60: (EF05HI02) Discutir sobre os vestígios relacionados ao surgimento da presença humana na Terra. | E60: X | G60: Unificar os objetivos EF05HI01 e EF05HI02.
B61: Ensino Fund. I (4º e 5º anos).xlsx | C61: CIÊN. HUMANAS HISTÓRIA | D61: (EF04HI03) Perceber as relações entre os indivíduos e a natureza. | E61: X | G61: Acrescentar relações histórico-sociais.
B62: Ensino Fund. I (4º e 5º anos).xlsx | C62: CIÊN. HUMANAS HISTÓRIA | D62: (EF04HI04) Identificar as transformações nos meios de deslocamento das pessoas e mercadorias | E62: X | G62: Explicar melhor a expressão meios de deslocamento.
B63: Ensino Fund. I (4º e 5º anos).xlsx | C63: CIÊN. HUMANAS HISTÓRIA | D63: (EF04HI05) Considerar a importância dos caminhos terrestres, fluviais e marítimos. | E63: X | G63: Propõe-se unificar os objetivos EF04HI04 e EF04HI05.
B64: Ensino Fund. I (4º e 5º anos).xlsx | C64: CIÊN. HUMANAS HISTÓRIA | D64: (EF04HI07) Relacionar os processos de ocupação do campo às intervenções na paisagem natural local. | E64: X | G64: Em qual perspectiva histórica, regional ou nacional?
B65: Ensino Fund. I (4º e 5º anos).xlsx | C65: CIÊN. HUMANAS HISTÓRIA | D65: (EF05HI07) Compreender o significado do conceito de civilização, relacionado com o surgimento da escrita, das cidades, das formas de hierarquização social, e da centralização política e religiosa. | E65: X | G65: Unificar os objetivos EF05HI07 e EF05HI09.
B66: Ensino Fund. I (4º e 5º anos).xlsx | C66: CIÊN. HUMANAS HISTÓRIA | D66: (EF04HI09) Conhecer o processo de surgimento da escrita. | E66: X | G66: Suprimir.
B67: Ensino Fund. I (4º e 5º anos).xlsx | C67: CIÊN. HUMANAS HISTÓRIA | D67: (EF05HI09) Conhecer formas de representações do tempo das primeiras civilizações, suas concepções religiosas, cosmologias e teogonias. | E67: X | G67: Contextualizar as civilizações.
B68: Ensino Fund. I (4º e 5º anos).xlsx | C68: CIÊN. HUMANAS HISTÓRIA | D68: (EF05HI11) Conhecer as relações entre povos nas primeiras civilizações: rotas de comércio, alianças políticas, trocas culturais, guerras, conquista de territórios e domínio dos povos. | E68: X | G68: Por idade moderna versus primeira civilização.
B69: Ensino Fund. I (4º e 5º anos).xlsx | C69: CIÊN. HUMANAS GEOGRAFIA | D69: (EF05GE06) Identificar impactos ambientais que processos de produção e de consumo de mercadorias provocam na unidade da federação e na região em que vive [ES] [EA]. | E69: X | G69: Incluir o artigo OS antes de impactos e depois de QUE.
B70: Ensino Fund. II - Educação Física.xlsx | C70: EDUCAÇÃO FÍSICA | D70: (EF06EF02) Praticar uma ou mais modalidades esportivas, escolhidas pelo coletivo da escola, usando habilidades técnico-táticas básicas. | E70: X | G70: Praticar varias atividades esportivas,possiveis de serem ofertadas no espaço escolar;
B71: Ensino Fund. II - Educação Física.xlsx | C71: EDUCAÇÃO FÍSICA | D71: (EF08EF02) Praticar uma ou mais modalidades esportivas, escolhidas pelo coletivo da escola, usando habilidades técnico-táticas básicas, de forma proficiente, e combinações táticas e sistemas de jogo de forma elementar. | E71: X | G71: PRATICAR VARIA ATIVIDADES ESPORTIVAS AO INVES DE UMA.
B72: Ensino Fund. II - Educação Física.xlsx | C72: EDUCAÇÃO FÍSICA | D72: (EF06EF10) Identificar os esportes praticados e os não praticados na comunidade e refletir sobre as características de seus praticantes. | E72: X | G72: PARA QUE REFLETIR SOBRE AS CARACTERISITCAS DE SEUS PRATICANTE?
B73: Ensino Fund. II - História.xlsx | C73: CIÊN. HUMANAS HISTÓRIA | D73: (EF06HI02) Reconhecer os conceitos de democracia e cidadania construídos na Grécia clássica e, em particular, em Atenas. | E73: X | G73: o aluno precisa conhecer os conceitos
B74: Ensino Fund. II - História.xlsx | C74: CIÊN. HUMANAS HISTÓRIA | D74: (EF07HI03) Analisar os diferentes impactos da conquista europeia da América para as populações ameríndias. | E74: X | G74: Identificar e analisar os...
B75: Ensino Fund. II - História.xlsx | C75: CIÊN. HUMANAS HISTÓRIA | D75: (EF08HI04) Analisar a relação do Império com as populações indígenas. | E75: X | G75: analisar a relação em que sentido.
B76: Ensino Fund. II - História.xlsx | C76: CIÊN. HUMANAS HISTÓRIA | D76: (EF08HI05) Reconhecer o Período Regencial e as motivações das revoltas provinciais que eclodiram nessa conjuntura. | E76: X | G76: caracterizar e analisar o período
B77: Ensino Fund. II - História.xlsx | C77: CIÊN. HUMANAS HISTÓRIA | D77: (EF07HI07) Compreender as várias estratégias de resistência indígena na América Ibérica às diferentes formas de dominação | E77: X | G77: Conhecer as estratégias
B78: Ensino Fund. II - História.xlsx | C78: CIÊN. HUMANAS HISTÓRIA | D78: (EF06HI09) Reconhecer a importância do latim na formação das línguas vernáculas modernas. | E78: X | G78: não condiz com o 6º ano
B79: Ensino Fund. II - História.xlsx | C79: CIÊN. HUMANAS HISTÓRIA | D79: (EF06HI10) Conhecer a relação entre patrícios e plebeus. | E79: X | G79: conhecer as relações em que aspecto?
B80: Ensino Fund. II - História.xlsx | C80: CIÊN. HUMANAS HISTÓRIA | D80: (EF08HI09) Identificar as razões e os efeitos do fim do Tráfico de Escravos em 1850. | E80: X
B81: Ensino Fund. II - História.xlsx | C81: CIÊN. HUMANAS HISTÓRIA | D81: (EF06HI11) Reconhecer e analisar as principais características da escravidão na Antiguidade. | E81: X | G81: escravidão na antiguidade em quais sociedades ?
B82: Ensino Fund. II - História.xlsx | C82: CIÊN. HUMANAS HISTÓRIA | D82: (EF08HI10) Conhecer as relações do Brasil com os demais países da América do Sul. | E82: X | G82: falta clareza?
B83: Ensino Fund. II - História.xlsx | C83: CIÊN. HUMANAS HISTÓRIA | D83: (EF09HI12) Analisar os significados dos nacionalismos e da construção de Impérios na Europa do século XIX | E83: X
B84: Ensino Fund. II - História.xlsx | C84: CIÊN. HUMANAS HISTÓRIA | D84: (EF06HI13) Analisar aspectos que mostram continuidades entre o helenismo e a cultura romana. | E84: X | G84: usar identificar e analisar
B85: Ensino Fund. II - História.xlsx | C85: CIÊN. HUMANAS HISTÓRIA | D85: (EF07HI13) Identificar os grupos que integravam a sociedade colonial em diferentes regiões do território. | E85: X | G85: Quais grupos? Quais regiões
B86: Ensino Fund. II - História.xlsx | C86: CIÊN. HUMANAS HISTÓRIA | D86: (EF08HI12) Analisar os diversos impactos sociais, econômicos e políticos da Abolição da Escravidão. | E86: X | G86: identificar e analisar as ...
B87: Ensino Fund. II - História.xlsx | C87: CIÊN. HUMANAS HISTÓRIA | D87: (EF06HI014) Identificar as origens do Cristianismo na região da Palestina e sua propagação por outras regiões do Império Romano. | E87: X | G87: por outras regiões até os dias atuais
B88: Ensino Fund. II - História.xlsx | C88: CIÊN. HUMANAS HISTÓRIA | D88: (EF06HI15) Identificar relações entre o Cristianismo, o povo hebreu e o Judaísmo. | E88: X | G88: Compreender as diferenças religiosas.
B89: Ensino Fund. II - História.xlsx | C89: CIÊN. HUMANAS HISTÓRIA | D89: (EF08HI14) Conhecer a crise do regime imperial e o processo de proclamação da República | E89: X | G89: compreender a crise...
B90: Ensino Fund. II - História.xlsx | C90: CIÊN. HUMANAS HISTÓRIA | D90: (EF06HI16) Reconhecer as origens do Islamismo na Península Arábica no século VIII. | E90: X | G90: Compreender as origens do Islamismo....
B91: Ensino Fund. II - História.xlsx | C91: CIÊN. HUMANAS HISTÓRIA | D91: (EF08HI15) Analisar os sentidos sociais e culturais da revolta de Canudos no sertão da Bahia, na década de 1890. | E91: X | G91: analisar os contextos...
B92: Ensino Fund. II - História.xlsx | C92: CIÊN. HUMANAS HISTÓRIA | D92: (EF06HI18) Identificar a divisão do Império Romano entre Império Romano do Ocidente e do Oriente. | E92: X | G92: Compreender o processo...
B93: Ensino Fund. II - História.xlsx | C93: CIÊN. HUMANAS HISTÓRIA | D93: (EF06HI19) Identificar aspectos do conceito de feudalismo. | E93: X | G93: Construir o conceito...
B94: Ensino Fund. II - História.xlsx | C94: CIÊN. HUMANAS HISTÓRIA | D94: (EF06HI20) Identificar a fragmentação do poder político e a primazia cultural e política da Igreja Católica. | E94: X | G94: Poder politico de quais sociedades?
B95: Ensino Fund. II - História.xlsx | C95: CIÊN. HUMANAS HISTÓRIA | D95: (EF06HI21) Classificar a estrutura da sociedade feudal definida a partir de três ordens, dos oratores, bellatores e laboratores, representadas pelas figuras do sacerdote, do cavaleiro e do camponês | E95: X | G95: Conhecer a organização social e material da sociedade feudal
B96: Ensino Fund. II - História.xlsx | C96: CIÊN. HUMANAS HISTÓRIA | D96: (EF06HI22) Identificar o papel do comércio e das cidades na Idade Média. | E96: X | G96: Identificar a importancia do comercio...
B97: Ensino Fund. II - História.xlsx | C97: CIÊN. HUMANAS HISTÓRIA | D97: (EF06HI25) Estabelecer as relações do mundo medieval com o mundo árabe, com o Império Otomano e com as populações judias. | E97: X | G97: Estabelecer as relações em que sentido?
B98: Ensino Fund. II - História.xlsx | C98: CIÊN. HUMANAS HISTÓRIA | D98: (EF06HI26) Compreender o papel da Biblioteca de Alexandria, das Cruzadas e da presença de judeus e árabes na Península Ibérica. | E98: X | G98: Compreender a importancia...
B99: Ensino Fund. II - História.xlsx | C99: CIÊN. HUMANAS HISTÓRIA | D99: (EF06HI27) Conhecer marcos fundamentais das Histórias Antiga e Medieval, incluindo contraposições, conexões e trocas que se estabeleceram entre “Ocidente” e “Oriente” ao longo desses séculos (cerca de 3 mil a.C. a fins do século XV) | E99: X | G99: Identificar marcos...
B100: Ensino Fund. II - História.xlsx | C100: CIÊN. HUMANAS HISTÓRIA | D100: (EF09HI21) Conhecer os conceitos fundamentais da ordem liberal e democrática | E100: X | G100: que conceitos são esses? Detalhar os conceitos.
B101: Ensino Fund. II - História.xlsx | C101: CIÊN. HUMANAS HISTÓRIA | D101: (EF08HI23) Contrapor excertos de textos que apresentem interpretações divergentes sobre a construção do Estado Nacional brasileiro. | E101: X
B102: Ensino Fund. II - História.xlsx | C102: CIÊN. HUMANAS HISTÓRIA | D102: (EF06HI29) Identificar diferentes fontes de conhecimento sobre as cidades medievais. | E102: X | G102: Somente medievais?
B103: Ensino Fund. II - História.xlsx | C103: CIÊN. HUMANAS HISTÓRIA | D103: (EF06HI30) Compreender a noção de “era cristã”. | E103: X | G103: Compreender a noção de tempo, tendo como referência a era cristã
B104: Ensino Fund. II - História.xlsx | C104: CIÊN. HUMANAS HISTÓRIA | D104: (EF08HI25) Reconhecer os principais personagens da história brasileira. | E104: X | G104: conhecer os principais...
B105: Ensino Fund. II - História.xlsx | C105: CIÊN. HUMANAS HISTÓRIA | D105: (EF09HI24) Identificar diferentes fontes de consulta sobre as grandes guerras mundiais. | E105: X
B106: Ensino Fund. II - História.xlsx | C106: CIÊN. HUMANAS HISTÓRIA | D106: (EF09HI25) Comparar os grandes embates ideológicos entre o liberalismo, conservadorismo, comunismo e social democracia. | E106: X
B107: Ensino Fund. II - História.xlsx | C107: CIÊN. HUMANAS HISTÓRIA | D107: (EF06HI01) Conhecer a história da Grécia antiga, com ênfase no processo de surgimento da polis e da Filosofia. | F107: X | G107: Trabalhar o conceito de História, fontes históricas e tempos
B108: Ensino Fund. II - História.xlsx | C108: CIÊN. HUMANAS HISTÓRIA | D108: (EF07HI01) Compreender o significado do Renascimento e do Humanismo. | F108: X
B109: Ensino Fund. II - História.xlsx | C109: CIÊN. HUMANAS HISTÓRIA | D109: (EF08HI01) Conhecer o processo de formação do Estado Nacional brasileiro na condição de Império. | F109: X
B110: Ensino Fund. II - História.xlsx | C110: CIÊN. HUMANAS HISTÓRIA | D110: (EF09HI01) Identificar as particularidades político-sociais da Inglaterra e os desdobramentos posteriores à Revolução Gloriosa do século XVII. | F110: X
B111: Ensino Fund. II - História.xlsx | C111: CIÊN. HUMANAS HISTÓRIA | D111: (EF07HI02) Estabelecer a relação entre a formação dos Estados Nacionais europeus, o mercantilismo e a expansão ultramarina. | F111: X
B112: Ensino Fund. II - História.xlsx | C112: CIÊN. HUMANAS HISTÓRIA | D112: (EF08HI02) Compreender a especificidade do processo de formação do Estado Nacional brasileiro em relação aos outros países da América que adotaram o regime republicano. | F112: X
B113: Ensino Fund. II - História.xlsx | C113: CIÊN. HUMANAS HISTÓRIA | D113: (EF09HI02) Conhecer a colonização da India, China e Austrália pelo Império Britânico. | F113: X
B114: Ensino Fund. II - História.xlsx | C114: CIÊN. HUMANAS HISTÓRIA | D114: (EF06HI03) Identificar a importância da mitologia grega e de suas representações nas artes e na literatura, até os dias de hoje. | F114: X
B115: Ensino Fund. II - História.xlsx | C115: CIÊN. HUMANAS HISTÓRIA | D115: (EF08HI03) Analisar as consequências sociais e políticas da permanência da escravidão ao longo do Império. | F115: X
B116: Ensino Fund. II - História.xlsx | C116: CIÊN. HUMANAS HISTÓRIA | D116: (EF09HI03) Relacionar o “processo de cercamento de terras” e a “Revolução Industrial”. | F116: X
B117: Ensino Fund. II - História.xlsx | C117: CIÊN. HUMANAS HISTÓRIA | D117: (EF06HI04) Conhecer o papel do Teatro (Tragédia) na Grécia enquanto forma de apropriação do espaço público . | F117: X
B118: Ensino Fund. II - História.xlsx | C118: CIÊN. HUMANAS HISTÓRIA | D118: (EF07HI04) Compreender o processo de organização do domínio colonial nas Américas portuguesa e espanhola. | F118: X
B119: Ensino Fund. II - História.xlsx | C119: CIÊN. HUMANAS HISTÓRIA | D119: (EF09HI04) Compreender o significado da “Revolução Industrial” e seus desdobramentos: desenvolvimento tecnológico, construção de fábricas, comércio marítimo, criação de bancos, ampliação da economia de mercado. | F119: X
B120: Ensino Fund. II - História.xlsx | C120: CIÊN. HUMANAS HISTÓRIA | D120: (EF06HI05) Valorizar as contribuições do pensamento grego para a Matemática e para o conhecimento da natureza. | F120: X
B121: Ensino Fund. II - História.xlsx | C121: CIÊN. HUMANAS HISTÓRIA | D121: (EF07HI05) Destacar a importância da ação missionária na América Ibérica, percebendo a violência implícita na catequese. | F121: X
B122: Ensino Fund. II - História.xlsx | C122: CIÊN. HUMANAS HISTÓRIA | D122: (EF09HI05) Compreender o significado do Iluminismo e a contribuição dos Enciclopedistas para a transformação das ideias que justificaram a Revolução Francesa. | F122: X
B123: Ensino Fund. II - História.xlsx | C123: CIÊN. HUMANAS HISTÓRIA | D123: (EF06HI06) Conhecer a conquista da Grécia pela Macedônia e a difusão da cultura helênica pelo mundo Mediterrâneo | F123: X | G123: considerar aspectos sociais, politicos e economicos da sociedade grega
B124: Ensino Fund. II - História.xlsx | C124: CIÊN. HUMANAS HISTÓRIA | D124: (EF07HI06) Reconhecer confrontos que produziram etnocídios. | F124: X
B125: Ensino Fund. II - História.xlsx | C125: CIÊN. HUMANAS HISTÓRIA | D125: (EF08HI06) Analisar as composições políticas do Segundo Reinado e as estratégias de imposição da ordem no país. | F125: X
B126: Ensino Fund. II - História.xlsx | C126: CIÊN. HUMANAS HISTÓRIA | D126: (EF09HI06) Analisar a importância da Revolução Francesa e seu confronto com o Regime Absolutista e com a sociedade dominada pela nobreza e pelo clero. | F126: X
B127: Ensino Fund. II - História.xlsx | C127: CIÊN. HUMANAS HISTÓRIA | D127: (EF06HI07) Conhecer o processo de formação do Império Romano. | F127: X
B128: Ensino Fund. II - História.xlsx | C128: CIÊN. HUMANAS HISTÓRIA | D128: (EF08HI07) Analisar o desenvolvimento da cafeicultura no Vale do Paraíba e, posteriormente, no Oeste paulista | F128: X
B129: Ensino Fund. II - História.xlsx | C129: CIÊN. HUMANAS HISTÓRIA | D129: (EF09HI07) Analisar as representações simbólicas construídas sobre a Revolução e a República na França a partir da “tomada da Bastilha” e vitória dos revolucionários. | F129: X
B130: Ensino Fund. II - História.xlsx | C130: CIÊN. HUMANAS HISTÓRIA | D130: (EF06HI08) Compreender aspectos da República romana e o papel do Direito na organização do Estado. | F130: X
B131: Ensino Fund. II - História.xlsx | C131: CIÊN. HUMANAS HISTÓRIA | D131: (EF07HI08) Analisar as relações de trabalho impostas às populações indígenas e a introdução da escravidão de origem africana nas América | F131: X
B132: Ensino Fund. II - História.xlsx | C132: CIÊN. HUMANAS HISTÓRIA | D132: (EF08HI08) Identificar os primeiros ensaios de modernização do país, em meados do século, motivados pela ampliação da economia exportadora de café (construção de estradas de ferro, portos, companhias de navegação), início da política de imigração e comercialização de terras. | F132: X
B133: Ensino Fund. II - História.xlsx | C133: CIÊN. HUMANAS HISTÓRIA | D133: (EF09HI08) Compreender os desdobramentos do processo revolucionário que resultaram na formação do Império comandado por Napoleão Bonaparte. | F133: X
B134: Ensino Fund. II - História.xlsx | C134: CIÊN. HUMANAS HISTÓRIA | D134: (EF07HI09) Conhecer as formas de organização social e política do continente africano na época moderna. | F134: X
B135: Ensino Fund. II - História.xlsx | C135: CIÊN. HUMANAS HISTÓRIA | D135: (EF09HI09) Analisar as transformações que ocorreram na Europa (luta contra o absolutismo) e nas Américas (independência) a partir das ideias liberais e iluministas no século XIX. | F135: X
B136: Ensino Fund. II - História.xlsx | C136: CIÊN. HUMANAS HISTÓRIA | D136: (EF07HI10) Identificar as condições do comércio de escravos na África e o desenvolvimento do tráfico transatlântico. | F136: X
B137: Ensino Fund. II - História.xlsx | C137: CIÊN. HUMANAS HISTÓRIA | D137: (EF09HI10) Estabelecer comparações entre os processos de Independência da América do Norte, da América Espanhola e da América Portuguesa, identificando os aspectos comuns e as múltiplas diferenças entre eles | F137: X
B138: Ensino Fund. II - História.xlsx | C138: CIÊN. HUMANAS HISTÓRIA | D138: (EF07HI11) Conhecer as diferentes formas de escravidão nas Américas e as estratégias de luta dos escravos pela liberdade. | F138: X
B139: Ensino Fund. II - História.xlsx | C139: CIÊN. HUMANAS HISTÓRIA | D139: (EF09HI11) Analisar a formação dos Estados Nacionais nas Américas ao longo do século XIX, levando em conta a especificidade do caso brasileiro. | F139: X
B140: Ensino Fund. II - História.xlsx | C140: CIÊN. HUMANAS HISTÓRIA | D140: (EF06HI12) Identificar os principais aspectos da expansão territorial de Roma na Península Itálica, em regiões da Europa, da África e do Oriente Médio. | F140: X
B141: Ensino Fund. II - História.xlsx | C141: CIÊN. HUMANAS HISTÓRIA | D141: (EF07HI12) Conhecer as diferentes fases da colonização do Brasil, em especial a da economia do açúcar no Nordeste, da exploração mineradora e a da expansão das fronteiras do território colonial. | F141: X
B142: Ensino Fund. II - História.xlsx | C142: CIÊN. HUMANAS HISTÓRIA | D142: (EF08HI11) Compreender a Guerra do Paraguai e seus desdobramentos nacionais e regionais. | F142: X
B143: Ensino Fund. II - História.xlsx | C143: CIÊN. HUMANAS HISTÓRIA | D143: (EF09HI13) Estabelecer a relação entre imperialismo e corrida imperialista dos Estados europeus, que resultou na política neocolonialista na Ásia e África. | F143: X
B144: Ensino Fund. II - História.xlsx | C144: CIÊN. HUMANAS HISTÓRIA | D144: (EF07HI14) Identificar aspectos da produção cultural no Nordeste açucareiro e na região das Minas Gerais. | F144: X
B145: Ensino Fund. II - História.xlsx | C145: CIÊN. HUMANAS HISTÓRIA | D145: (EF08HI13) Reconhecer as representações da nação brasileira na literatura e na pintura ao longo do Segundo Reinado. | F145: X
B146: Ensino Fund. II - História.xlsx | C146: CIÊN. HUMANAS HISTÓRIA | D146: (EF09HI14) Identificar os aspectos fundamentais da Revolução Russa. | F146: X
B147: Ensino Fund. II - História.xlsx | C147: CIÊN. HUMANAS HISTÓRIA | D147: (EF07HI15) Analisar a importância das revoltas coloniais. | F147: X
B148: Ensino Fund. II - História.xlsx | C148: CIÊN. HUMANAS HISTÓRIA | D148: (EF09HI15) Conhecer o período entre guerras e o surgimento do fascismo e do nazismo. | F148: X
B149: Ensino Fund. II - História.xlsx | C149: CIÊN. HUMANAS HISTÓRIA | D149: (EF07HI16) Conhecer os motivos e os desdobramentos da vinda da corte portuguesa para o Rio de Janeiro em 1808. | F149: X
B150: Ensino Fund. II - História.xlsx | C150: CIÊN. HUMANAS HISTÓRIA | D150: (EF09HI16) Conhecer as origens e os propósitos da Organização das Nações Unidas. | F150: X
B151: Ensino Fund. II - História.xlsx | C151: CIÊN. HUMANAS HISTÓRIA | D151: EF06HI17) Compreender a desestruturação do Império Romano e a formação do mundo medieval na Europa. | F151: X
B152: Ensino Fund. II - História.xlsx | C152: CIÊN. HUMANAS HISTÓRIA | D152: (EF07HI17) Inferir, a partir de fontes diversas, motivações e desdobramentos de conflitos entre poderes locais e central no Brasil, relacionados aos europeus, indígenas e negros, expressos em movimentos, tais como Confederação dos Tamoios (1556-1567), Levantes dos Tupinambás (1617-1621), Revolta de Beckman (1684), formação do Quilombo dos Palmares (século XVII). | F152: X
B153: Ensino Fund. II - História.xlsx | C153: CIÊN. HUMANAS HISTÓRIA | D153: (EF08HI16) Conhecer a obra Os Sertões, de Euclides da Cunha, em especial a sua “descoberta” das mazelas do “Brasil profundo”. | F153: X
B154: Ensino Fund. II - História.xlsx | C154: CIÊN. HUMANAS HISTÓRIA | D154: (EF09HI17) Conhecer a Carta dos Direitos Humanos e sua relação com o processo de afirmação dos direitos das minorias. | F154: X
B155: Ensino Fund. II - História.xlsx | C155: CIÊN. HUMANAS HISTÓRIA | D155: (EF08HI17) Identificar os aspectos econômicos, sociais e políticos que caracterizam a Primeira República. | F155: X
B156: Ensino Fund. II - História.xlsx | C156: CIÊN. HUMANAS HISTÓRIA | D156: (EF09HI18) Identificar os principais aspectos sociais, econômicos e políticos dos Estados de Bem-Estar Social. | F156: X
B157: Ensino Fund. II - História.xlsx | C157: CIÊN. HUMANAS HISTÓRIA | D157: (EF07HI18) Analisar o processo de independência do Brasil, levando em conta as revoltas reprimidas e o papel da Inconfidência Mineira, e da “Conjuração Baiana” ou “Revolta dos Alfaiates” (1796-1799) | F157: X
B158: Ensino Fund. II - História.xlsx | C158: CIÊN. HUMANAS HISTÓRIA | D158: (EF08HI18) Identificar o sistema políticopartidário da Primeira República e as bases sociais do Partido Republicano nos estados participantes da chamada política do “café com leite”, São Paulo e Minas Gerais | F158: X
B159: Ensino Fund. II - História.xlsx | C159: CIÊN. HUMANAS HISTÓRIA | D159: (EF09HI19) Compreender os significados da Guerra Fria e identificar as “zonas de influência” dos Estados Unidos e da União Soviética. | F159: X
B160: Ensino Fund. II - História.xlsx | C160: CIÊN. HUMANAS HISTÓRIA | D160: (EF08HI19) Caracterizar os aspectos fundamentais do período republicano entre 1946 e 1964. | F160: X
B161: Ensino Fund. II - História.xlsx | C161: CIÊN. HUMANAS HISTÓRIA | D161: (EF09HI20) Analisar os principais eixos de polarização política que emergiram no cenário mundial após o fim da Guerra Fria | F161: X
B162: Ensino Fund. II - História.xlsx | C162: CIÊN. HUMANAS HISTÓRIA | D162: (EF07HI19) Estabelecer relações e conexões entre o processo de independência do Brasil e o da América de colonização espanhola. | F162: X
B163: Ensino Fund. II - História.xlsx | C163: CIÊN. HUMANAS HISTÓRIA | D163: (EF08HI20) Identificar as principais características do golpe de 1964 e dos posteriores governos do regime militar. | F163: X
B164: Ensino Fund. II - História.xlsx | C164: CIÊN. HUMANAS HISTÓRIA | D164: (EF07HI20) Comparar a independência do Brasil e da América de colonização espanhola com a independência dos Estados Unidos. | F164: X
B165: Ensino Fund. II - História.xlsx | C165: CIÊN. HUMANAS HISTÓRIA | D165: (EF08HI21) Analisar o processo de transição democrática e as principais características da Constituição de 1988. | F165: X
B166: Ensino Fund. II - História.xlsx | C166: CIÊN. HUMANAS HISTÓRIA | D166: (EF06HI23) Identificar aspectos de manifestações culturais e artísticas do mundo medieval, destacando a construção de catedrais, de castelos e o nascimento das Universidades. | F166: X
B167: Ensino Fund. II - História.xlsx | C167: CIÊN. HUMANAS HISTÓRIA | D167: (EF06HI24) Analisar e problematizar o conceito de Idade Média como periodização da História Universal. | F167: X
B168: Ensino Fund. II - História.xlsx | C168: CIÊN. HUMANAS HISTÓRIA | D168: (EF07HI21) Conhecer Identificar, em diferentes fontes, marcos fundamentais do advento da Modernidade. | F168: X
B169: Ensino Fund. II - História.xlsx | C169: CIÊN. HUMANAS HISTÓRIA | D169: (EF08HI22) Analisar documentos históricos que reflitam os momentos de inflexão na construção do Estado Nacional brasileiro. | F169: X
B170: Ensino Fund. II - História.xlsx | C170: CIÊN. HUMANAS HISTÓRIA | D170: (EF06HI28) Produzir textos que discorram sobre o desenvolvimento dessas civilizações e sociedades. | F170: X
B171: Ensino Fund. II - História.xlsx | C171: CIÊN. HUMANAS HISTÓRIA | D171: (EF07HI22) Relacionar as transformações em curso na Europa moderna e as formas pelas quais se fazem presentes em outras regiões do mundo, em particular, no “Novo Mundo”. | F171: X
B172: Ensino Fund. II - História.xlsx | C172: CIÊN. HUMANAS HISTÓRIA | D172: (EF09HI22) Conhecer os diferentes conceitos de capitalismo. | F172: X
B173: Ensino Fund. II - História.xlsx | C173: CIÊN. HUMANAS HISTÓRIA | D173: (EF07HI23) Analisar os modos de exercício de dominação sobre as populações ameríndias, e sobre os múltiplos modos de resistência | F173: X
B174: Ensino Fund. II - História.xlsx | C174: CIÊN. HUMANAS HISTÓRIA | D174: (EF08HI24) Conhecer documentos e monumentos fundamentais da história brasileira | F174: X
B175: Ensino Fund. II - História.xlsx | C175: CIÊN. HUMANAS HISTÓRIA | D175: (EF09HI23) Identificar a relação entre a “era das revoluções” e a formação do indivíduo moderno. | F175: X
B176: Ensino Fund. II - História.xlsx | C176: CIÊN. HUMANAS HISTÓRIA | D176: (EF07HI24) Utilizar documentos históricos que iluminem a dominação e a resistência das populações ameríndias. | F176: X
B177: Ensino Fund. II - História.xlsx | C177: CIÊN. HUMANAS HISTÓRIA | D177: (EF07HI25) Identificar aspectos da história dos reinos africanos durante o tráfico “negreiro”. | F177: X
B178: Ensino Fund. II - História.xlsx | C178: CIÊN. HUMANAS HISTÓRIA | D178: (EF08HI26) Formular questionamentos sobre o legado do latifúndio e da escravidão. | F178: X
B179: Ensino Fund. II - História.xlsx | C179: CIÊN. HUMANAS HISTÓRIA | D179: (EF07HI26) Identificar fontes de diferentes naturezas para obter informações sobre a escravidão nas Américas. | F179: X
B180: Ensino Fund. II - História.xlsx | C180: CIÊN. HUMANAS HISTÓRIA | D180: (EF27HI06) Relacionar a história brasileira aos processos contemporâneos relacionados à conquista de direitos dos trabalhadores | F180: X
B181: Ensino Fund. II - História.xlsx | C181: CIÊN. HUMANAS HISTÓRIA | D181: (EF09HI26) Analisar os efeitos devastadores do imperialismo europeu sobre os países da África e da Ásia. | F181: X
B182: Ensino Fund. II - História.xlsx | C182: CIÊN. HUMANAS HISTÓRIA | D182: (EF07HI27) Pesquisar diferentes fontes sobre a catequese dos índios, analisando diferentes pontos de vista sobre o fato. | F182: X
B183: Ensino Fund. II - História.xlsx | C183: CIÊN. HUMANAS HISTÓRIA | D183: (EF08HI28) Relacionar a história brasileira aos processos contemporâneos de reconhecimento dos direitos das populações indígenas e quilombolas. | F183: X
B184: Ensino Fund. II - História.xlsx | C184: CIÊN. HUMANAS HISTÓRIA | D184: (EF09HI27) Utilizar diferentes fontes de consulta sobre os regimes totalitários. | F184: X
B185: Ensino Médio - Biologia.xlsx | C185: EM - BIOLOGIA | D185: (EM32CN01) Entender o conceito de nicho a partir de uma compreensão de que os seres vivos se relacionam com componentes bióticos e abióticos do ambiente influenciando a sua distribuição, abundância e composição. | E185: X | G185: como termo mais atualizado na área de biologia, sugerimos a substituição do termo "se relacionam" por "interagem"
B186: Ensino Médio - Biologia.xlsx | C186: EM - BIOLOGIA | E186: X | G186: o lipidio não é considerado uma macromolécula, mas é sintetizado pela célula, assim achamos pertinente substituir o termo "macromolécula" por "molécula"
B187: Ensino Médio - Biologia.xlsx | C187: EM - BIOLOGIA | E187: X | G187: Apenas como concordância, colocar o termo cadeia e teia alimentares.
B188: Ensino Médio - Biologia.xlsx | C188: EM - BIOLOGIA | D188: (EM31CN03) Compreender as diferentes propostas de definir vida ao longo da história da Biologia e aplicá-las no exame das discussões sobre formas limítrofes ou fronteiriças de vida | E188: X | G188: O termo "exame das discussões" não corrobora com o compreensão do objetivo. Substutuir por "Análise e discussões"
B189: Ensino Médio - Biologia.xlsx | C189: EM - BIOLOGIA | E189: X | G189: Atualizar o termo "monera"
B190: Ensino Médio - Biologia.xlsx | C190: EM - BIOLOGIA | E190: X | G190: Depois de contexto trocar para "destacando as rotas metabólicas que ocorrem de modo integrado nos diversos componentes celulares"
B191: Ensino Médio - Biologia.xlsx | C191: EM - BIOLOGIA | E191: X | G191: explicitar o tipo de recurso, nesse caso "Recursos naturais"
B192: Ensino Médio - Biologia.xlsx | C192: EM - BIOLOGIA | D192: (EM36CN04) Compreender que a preservação de um ambiente mantém o equilíbrio ambiental (como a umidade do ar, temperatura, polinização) e que os recursos naturais podem ser esgotáveis, sendo necessária uma gestão consciente dos impactos da sua exploração. | E192: X | G192: "mantem o equilibrio do mesmo" no lugar de " mantem o equilibio ambiental"
B193: Ensino Médio - Biologia.xlsx | C193: EM - BIOLOGIA | D193: (EM32CN05) Reconhecer que o funcionamento de um ecossistema é influenciado pelo tempo e pelo espaço e que acontecem transferências de energia e ciclagem da matéria entre seus componentes (teias e cadeias), mostrando que a perda da biodiversidade gera desequilíbrios em um ambiente. | E193: X | G193: como modo de deixar mais claro e padronizado, sugerimos o uso do conceito explicito "teias e cadeias alimentares"
B194: Ensino Médio - Biologia.xlsx | C194: EM - BIOLOGIA | D194: (EM34CN05) Compreender as noções sobre Biotecnologia, com ênfase em suas aplicações e no desenvolvimento de tecnologias voltadas para o interesse humano, assim como apresentar algumas das metodologias utilizadas na engenharia genética. | E194: X | G194: acrescentar no trmo "principalmente" (entre virgulas) de pois de "metodologias utilizadas.
B195: Ensino Médio - Biologia.xlsx | C195: EM - BIOLOGIA | D195: (EM35CN05) Aplicar a teoria da seleção natural e o conceito de adaptação na resolução de problemas sociocientíficos que afetam nossa qualidade de vida, como a resistência bacteriana a antibióticos, a obesidade, ou o manejo de pragas agrícolas. | E195: X | G195: Ao final da redação acrescentar "dentre outros"
B196: Ensino Médio - Biologia.xlsx | C196: EM - BIOLOGIA | D196: (EM33CN06) Aplicar o conceito de homeostase na compreensão e proposição de modelos explicativos para doenças sistêmicas | F196: X | G196: Este objetivo deveria ser o quinto, para dar continuidade ao quarto.
B197: Ensino Fund. I (1º, 2º e 3º anos).xlsx | C197: LINGUAGENS. LÍNGUA PORT I | D197: (EF02LP12) Reconhecer, a partir da leitura mediada pelo/a professor/a, o conflito gerador de uma narrativa e sua resolução. | F197: X
B198: Ensino Fund. I (1º, 2º e 3º anos).xlsx | C198: LINGUAGENS. LÍNGUA PORT I | D198: (EF03LP13) Identificar os elementos centrais de notícias e reportagens,como: o fato, os participantes, o tempo, lugar e o porquê dos acontecimentos. | F198: X | G198: O porquê dos acontecimentos (complexo para o 3º Ano)
B199: Ensino Fund. I (1º, 2º e 3º anos).xlsx | C199: LINGUAGENS. LÍNGUA PORT I | D199: (EF01LP18) Utilizar, com a mediação do/a professor/a e em colaboração com colegas, “software” para construir e publicar textos curtos. | F199: X
B200: Ensino Fund. I (1º, 2º e 3º anos).xlsx | C200: LINGUAGENS. ARTE I | D200: (EF01AR06) Cultivar a percepção, o imaginário, a capacidade de simbolizar e o repertório imagético por meio de ações poéticas (CIA). | E200: X | G200: Os conteúdos estão todos juntos com apenas uma referencia do 1º ao 5º, sem levar em conta o desenvolvimento gradativa da criança. Reduzir as capacidades em ações poeticas empobrece os pois outros meios poderiam ser explorados.
... 35 more rows

Sheet Resultados quantitativos
B2: Áreas | C2: Segmentos das áreas | D2: Quantidade de objetivos por segmento | E2: Quantidade de objetivos indicados por problemas de CLAREZA | F2: Quantidade de objetivos indicados por problemas de PERTINÊNCIA
B3: Educação Infantil (Bebês) | C3: O eu, o outro, o nós | D3: 5 | E3: =COUNTIFS(CONSOLIDAÇÃO!C:C,"O eu, o outro, o nós - Bebês",CONSOLIDAÇÃO!E:E,"X") -> 0 | F3: =COUNTIFS(CONSOLIDAÇÃO!C:C,"O eu, o outro, o nós - Bebês",CONSOLIDAÇÃO!F:F,"X") -> 0
C4: Corpo, gestos e mov. | D4: 5 | E4: =COUNTIFS(CONSOLIDAÇÃO!C:C,"Corpo, gestos e mov. - Bebês",CONSOLIDAÇÃO!E:E,"X") -> 0 | F4: =COUNTIFS(CONSOLIDAÇÃO!C:C,"Corpo, gestos e mov. - Bebês",CONSOLIDAÇÃO!F:F,"X") -> 0
C5: Escuta, fala, pens. | D5: 4 | E5: =COUNTIFS(CONSOLIDAÇÃO!C:C,"Escuta, fala, pens. - Bebês",CONSOLIDAÇÃO!E:E,"X") -> 0 | F5: =COUNTIFS(CONSOLIDAÇÃO!C:C,"Escuta, fala, pens. - Bebês",CONSOLIDAÇÃO!F:F,"X") -> 0
C6: Traços, sons, formas | D6: 5 | E6: =COUNTIFS(CONSOLIDAÇÃO!C:C,"Traços, sons, formas - Bebês",CONSOLIDAÇÃO!E:E,"X") -> 0 | F6: =COUNTIFS(CONSOLIDAÇÃO!C:C,"Traços, sons, formas - Bebês",CONSOLIDAÇÃO!F:F,"X") -> 0
C7: Espaços, tempos, qnt. | D7: 4 | E7: =COUNTIFS(CONSOLIDAÇÃO!C:C,"Espaços, tempos, qnt. - Bebês",CONSOLIDAÇÃO!E:E,"X") -> 0 | F7: =COUNTIFS(CONSOLIDAÇÃO!C:C,"Espaços, tempos, qnt. - Bebês",CONSOLIDAÇÃO!F:F,"X") -> 0
C8: TOTAL DA ÁREA | D8: =SUM(D3:D7) -> 23 | E8: =SUM(E3:E7) -> 0 | F8: 0
D9: =E8/D8 -> 0 | F9: =F8/D8 -> 0
B10: Educação Infantil (Bem pequenas) | C10: O eu, o outro, o nós | D10: 5 | E10: =COUNTIFS(CONSOLIDAÇÃO!C:C,"O eu, o outro, o nós - BP",CONSOLIDAÇÃO!E:E,"X") -> 0 | F10: =COUNTIFS(CONSOLIDAÇÃO!C:C,"O eu, o outro, o nós - BP",CONSOLIDAÇÃO!F:F,"X") -> 0
C11: Corpo, gestos e mov. | D11: 5 | E11: =COUNTIFS(CONSOLIDAÇÃO!C:C,"Corpo, gestos e mov. - BP",CONSOLIDAÇÃO!E:E,"X") -> 0 | F11: =COUNTIFS(CONSOLIDAÇÃO!C:C,"Corpo, gestos e mov. - BP",CONSOLIDAÇÃO!F:F,"X") -> 0
C12: Escuta, fala, pens. | D12: 5 | E12: =COUNTIFS(CONSOLIDAÇÃO!C:C,"Escuta, fala, pens. - BP",CONSOLIDAÇÃO!E:E,"X") -> 0 | F12: =COUNTIFS(CONSOLIDAÇÃO!C:C,"Escuta, fala, pens. - BP",CONSOLIDAÇÃO!F:F,"X") -> 0
C13: Traços, sons, formas | D13: 5 | E13: =COUNTIFS(CONSOLIDAÇÃO!C:C,"Traços, sons, formas - BP",CONSOLIDAÇÃO!E:E,"X") -> 0 | F13: =COUNTIFS(CONSOLIDAÇÃO!C:C,"Traços, sons, formas - BP",CONSOLIDAÇÃO!F:F,"X") -> 0
C14: Espaços, tempos, qnt. | D14: 5 | E14: =COUNTIFS(CONSOLIDAÇÃO!C:C,"Espaços, tempos, qnt. - BP",CONSOLIDAÇÃO!E:E,"X") -> 0 | F14: =COUNTIFS(CONSOLIDAÇÃO!C:C,"Espaços, tempos, qnt. - BP",CONSOLIDAÇÃO!F:F,"X") -> 0
C15: TOTAL DA ÁREA | D15: =SUM(D10:D14) -> 25 | E15: =SUM(E10:E14) -> 0 | F15: 0
D16: =E15/D15 -> 0 | F16: =F15/D15 -> 0
B17: Educação Infantil (Pequenas) | C17: O eu, o outro, o nós | D17: 5 | E17: =COUNTIFS(CONSOLIDAÇÃO!C:C,"O eu, o outro, o nós - Pequenas",CONSOLIDAÇÃO!E:E,"X") -> 0 | F17: =COUNTIFS(CONSOLIDAÇÃO!C:C,"O eu, o outro, o nós - Pequenas",CONSOLIDAÇÃO!F:F,"X") -> 0
C18: Corpo, gestos e mov. | D18: 5 | E18: =COUNTIFS(CONSOLIDAÇÃO!C:C,"Corpo, gestos e mov. - Pequenas",CONSOLIDAÇÃO!E:E,"X") -> 0 | F18: =COUNTIFS(CONSOLIDAÇÃO!C:C,"Corpo, gestos e mov. - Pequenas",CONSOLIDAÇÃO!F:F,"X") -> 0
C19: Escuta, fala, pens. | D19: 5 | E19: =COUNTIFS(CONSOLIDAÇÃO!C:C,"Escuta, fala, pens. - Pequenas",CONSOLIDAÇÃO!E:E,"X") -> 0 | F19: =COUNTIFS(CONSOLIDAÇÃO!C:C,"Escuta, fala, pens. - Pequenas",CONSOLIDAÇÃO!F:F,"X") -> 0
C20: Traços, sons, formas | D20: 5 | E20: =COUNTIFS(CONSOLIDAÇÃO!C:C,"Traços, sons, formas - Pequenas",CONSOLIDAÇÃO!E:E,"X") -> 0 | F20: =COUNTIFS(CONSOLIDAÇÃO!C:C,"Traços, sons, formas - Pequenas",CONSOLIDAÇÃO!F:F,"X") -> 0
C21: Espaços, tempos, qnt. | D21: 5 | E21: =COUNTIFS(CONSOLIDAÇÃO!C:C,"Espaços, tempos, qnt. - Pequena",CONSOLIDAÇÃO!E:E,"X") -> 0 | F21: =COUNTIFS(CONSOLIDAÇÃO!C:C,"Espaços, tempos, qnt. - Pequena",CONSOLIDAÇÃO!F:F,"X") -> 0
C22: TOTAL DA ÁREA | D22: =SUM(D17:D21) -> 25 | E22: =SUM(E17:E21) -> 0 | F22: 0
D23: 0.04 | F23: =F22/D22 -> 0
B24: Ensino Fund. I (1º, 2º e 3º anos) | C24: Língua Portuguesa | D24: 147 | E24: =COUNTIFS(CONSOLIDAÇÃO!C:C,"LINGUAGENS. LÍNGUA PORT I",CONSOLIDAÇÃO!E:E,"X") -> 0 | F24: =COUNTIFS(CONSOLIDAÇÃO!C:C,"LINGUAGENS. LÍNGUA PORT I",CONSOLIDAÇÃO!F:F,"X") -> 3
C25: Arte | D25: 36 | E25: =COUNTIFS(CONSOLIDAÇÃO!C:C,"LINGUAGENS. ARTE I",CONSOLIDAÇÃO!E:E,"X") -> 4 | F25: =COUNTIFS(CONSOLIDAÇÃO!C:C,"LINGUAGENS. ARTE I",CONSOLIDAÇÃO!F:F,"X") -> 3
C26: Educação Física | D26: 27 | E26: =COUNTIFS(CONSOLIDAÇÃO!C:C,"LINGUAGENS. ED. FÍSICA I",CONSOLIDAÇÃO!E:E,"X") -> 0 | F26: =COUNTIFS(CONSOLIDAÇÃO!C:C,"LINGUAGENS. ED. FÍSICA I",CONSOLIDAÇÃO!F:F,"X") -> 1
C27: Matemática | D27: 51 | E27: =COUNTIFS(CONSOLIDAÇÃO!C:C,"MATEMÁTICA I",CONSOLIDAÇÃO!E:E,"X") -> 5 | F27: =COUNTIFS(CONSOLIDAÇÃO!C:C,"MATEMÁTICA I",CONSOLIDAÇÃO!F:F,"X") -> 0
C28: Ciências | D28: 35 | E28: =COUNTIFS(CONSOLIDAÇÃO!C:C,"CIÊNCIAS I",CONSOLIDAÇÃO!E:E,"X") -> 1 | F28: =COUNTIFS(CONSOLIDAÇÃO!C:C,"CIÊNCIAS I",CONSOLIDAÇÃO!F:F,"X") -> 0
C29: História | D29: 59 | E29: =COUNTIFS(CONSOLIDAÇÃO!C:C,"CIÊN. HUMANAS HISTÓRIA I",CONSOLIDAÇÃO!E:E,"X") -> 1 | F29: =COUNTIFS(CONSOLIDAÇÃO!C:C,"CIÊN. HUMANAS HISTÓRIA I",CONSOLIDAÇÃO!F:F,"X") -> 1
C30: Geografia | D30: 18 | E30: =COUNTIFS(CONSOLIDAÇÃO!C:C,"CIÊN. HUMANAS GEOGRAFIA I",CONSOLIDAÇÃO!E:E,"X") -> 1 | F30: =COUNTIFS(CONSOLIDAÇÃO!C:C,"CIÊN. HUMANAS GEOGRAFIA I",CONSOLIDAÇÃO!F:F,"X") -> 0
C31: Ensino Religioso | D31: 15 | E31: =COUNTIFS(CONSOLIDAÇÃO!C:C,"ENSINO RELIGIOSO I",CONSOLIDAÇÃO!E:E,"X") -> 0 | F31: =COUNTIFS(CONSOLIDAÇÃO!C:C,"ENSINO RELIGIOSO I",CONSOLIDAÇÃO!F:F,"X") -> 0
C32: TOTAL DA ÁREA | D32: =SUM(D24:D31) -> 388 | E32: =SUM(E24:E31) -> 12 | F32: 8
D33: =E32/D32 -> 0.03092783505 | F33: =F32/D32 -> 0.0206185567
B34: Ensino Fund. I (4º e 5º anos) | C34: Língua Portuguesa | D34: 82 | E34: =COUNTIFS(CONSOLIDAÇÃO!C:C,"LINGUAGENS. LÍNGUA PORT",CONSOLIDAÇÃO!E:E,"X") -> 0 | F34: =COUNTIFS(CONSOLIDAÇÃO!C:C,"LINGUAGENS. LÍNGUA PORT",CONSOLIDAÇÃO!F:F,"X") -> 0
C35: Arte | D35: 36 | E35: =COUNTIFS(CONSOLIDAÇÃO!C:C,"LINGUAGENS. ARTE",CONSOLIDAÇÃO!E:E,"X") -> 0 | F35: =COUNTIFS(CONSOLIDAÇÃO!C:C,"LINGUAGENS. ARTE",CONSOLIDAÇÃO!F:F,"X") -> 0
C36: Educação Física | D36: 61 | E36: =COUNTIFS(CONSOLIDAÇÃO!C:C,"LINGUAGENS. ED. FÍSICA",CONSOLIDAÇÃO!E:E,"X") -> 0 | F36: =COUNTIFS(CONSOLIDAÇÃO!C:C,"LINGUAGENS. ED. FÍSICA",CONSOLIDAÇÃO!F:F,"X") -> 0
C37: Matemática | D37: 44 | E37: =COUNTIFS(CONSOLIDAÇÃO!C:C,"MATEMÁTICA",CONSOLIDAÇÃO!E:E,"X") -> 6 | F37: =COUNTIFS(CONSOLIDAÇÃO!C:C,"MATEMÁTICA",CONSOLIDAÇÃO!F:F,"X") -> 2
C38: Ciências | D38: 23 | E38: =COUNTIFS(CONSOLIDAÇÃO!C:C,"CIÊNCIAS",CONSOLIDAÇÃO!E:E,"X") -> 0 | F38: =COUNTIFS(CONSOLIDAÇÃO!C:C,"CIÊNCIAS",CONSOLIDAÇÃO!F:F,"X") -> 0
C39: História | D39: 40 | E39: =COUNTIFS(CONSOLIDAÇÃO!C:C,"CIÊN. HUMANAS HISTÓRIA",CONSOLIDAÇÃO!E:E,"X") -> 44 | F39: =COUNTIFS(CONSOLIDAÇÃO!C:C,"CIÊN. HUMANAS HISTÓRIA",CONSOLIDAÇÃO!F:F,"X") -> 78
C40: Geografia | D40: 13 | E40: =COUNTIFS(CONSOLIDAÇÃO!C:C,"CIÊN. HUMANAS GEOGRAFIA",CONSOLIDAÇÃO!E:E,"X") -> 2 | F40: =COUNTIFS(CONSOLIDAÇÃO!C:C,"CIÊN. HUMANAS GEOGRAFIA",CONSOLIDAÇÃO!F:F,"X") -> 1
C41: Ensino Religioso | D41: 10 | E41: =COUNTIFS(CONSOLIDAÇÃO!C:C,"ENSINO RELIGIOSO",CONSOLIDAÇÃO!E:E,"X") -> 3 | F41: =COUNTIFS(CONSOLIDAÇÃO!C:C,"ENSINO RELIGIOSO",CONSOLIDAÇÃO!F:F,"X") -> 0
C42: TOTAL DA ÁREA | D42: =SUM(D34:D41) -> 309 | E42: =SUM(E34:E41) -> 55 | F42: 81
D43: =E42/D42 -> 0.1779935275 | F43: =F42/D42 -> 0.2621359223
B44: Ensino Fund. II | C44: Arte | D44: 39 | E44: =COUNTIFS(CONSOLIDAÇÃO!C:C,"Artes",CONSOLIDAÇÃO!E:E,"X") -> 1 | F44: =COUNTIFS(CONSOLIDAÇÃO!C:C,"Artes",CONSOLIDAÇÃO!F:F,"X") -> 1
C45: Ciências | D45: 38 | E45: =COUNTIFS(CONSOLIDAÇÃO!C:C,"ciências da Natureza",CONSOLIDAÇÃO!E:E,"X") -> 15 | F45: =COUNTIFS(CONSOLIDAÇÃO!C:C,"ciências da Natureza",CONSOLIDAÇÃO!F:F,"X") -> 2
C46: Educação Física | D46: 90 | E46: =COUNTIFS(CONSOLIDAÇÃO!C:C,"Educação Física",CONSOLIDAÇÃO!E:E,"X") -> 3 | F46: =COUNTIFS(CONSOLIDAÇÃO!C:C,"Educação Física",CONSOLIDAÇÃO!F:F,"X") -> 0
C47: Ensino Religioso | D47: 38 | E47: =COUNTIFS(CONSOLIDAÇÃO!C:C,"Ensino Religioso",CONSOLIDAÇÃO!E:E,"X") -> 3 | F47: =COUNTIFS(CONSOLIDAÇÃO!C:C,"Ensino Religioso",CONSOLIDAÇÃO!F:F,"X") -> 0
C48: Geografia | D48: 36 | E48: =COUNTIFS(CONSOLIDAÇÃO!C:C,"CIÊN. HUMANAS GEOGRAFIA",CONSOLIDAÇÃO!E:E,"X") -> 2 | F48: =COUNTIFS(CONSOLIDAÇÃO!C:C,"CIÊN. HUMANAS GEOGRAFIA",CONSOLIDAÇÃO!F:F,"X") -> 1
C49: História | D49: 122 | E49: =COUNTIFS(CONSOLIDAÇÃO!C:C,"CIÊN. HUMANAS HISTÓRIA",CONSOLIDAÇÃO!E:E,"X") -> 44 | F49: =COUNTIFS(CONSOLIDAÇÃO!C:C,"CIÊN. HUMANAS HISTÓRIA",CONSOLIDAÇÃO!F:F,"X") -> 78
C50: Língua Estrangeira | D50: 32 | E50: =COUNTIFS(CONSOLIDAÇÃO!C:C,"Língua Estrangeira",CONSOLIDAÇÃO!E:E,"X") -> 0 | F50: =COUNTIFS(CONSOLIDAÇÃO!C:C,"Língua Estrangeira",CONSOLIDAÇÃO!F:F,"X") -> 0
C51: Língua Portuguesa | D51: 164 | E51: =COUNTIFS(CONSOLIDAÇÃO!C:C,"Língua Portuguesa",CONSOLIDAÇÃO!E:E,"X") -> 1 | F51: =COUNTIFS(CONSOLIDAÇÃO!C:C,"Língua Portuguesa",CONSOLIDAÇÃO!F:F,"X") -> 1
C52: Matemática | D52: 75 | E52: =COUNTIFS(CONSOLIDAÇÃO!C:C,"MATEMÁTICA.",CONSOLIDAÇÃO!E:E,"X") -> 8 | F52: =COUNTIFS(CONSOLIDAÇÃO!C:C,"MATEMÁTICA.",CONSOLIDAÇÃO!F:F,"X") -> 1
C53: TOTAL DA ÁREA | D53: =SUM(D44:D52) -> 634 | E53: =SUM(E44:E52) -> 77 | F53: 84
D54: =E53/D53 -> 0.1214511041 | F54: =F53/D53 -> 0.1324921136
B55: Ensino Médio | C55: Arte | D55: 41 | E55: =COUNTIFS(CONSOLIDAÇÃO!C:C,"EM - ARTES",CONSOLIDAÇÃO!E:E,"X") -> 0 | F55: =COUNTIFS(CONSOLIDAÇÃO!C:C,"EM - ARTES",CONSOLIDAÇÃO!F:F,"X") -> 0
C56: Biologia | D56: 37 | E56: =COUNTIFS(CONSOLIDAÇÃO!C:C,"EM - BIOLOGIA",CONSOLIDAÇÃO!E:E,"X") -> 11 | F56: =COUNTIFS(CONSOLIDAÇÃO!C:C,"EM - BIOLOGIA",CONSOLIDAÇÃO!F:F,"X") -> 1
C57: Educação Física | D57: 92 | E57: =COUNTIFS(CONSOLIDAÇÃO!C:C,"EM - EDUCAÇÃO FÍSICA",CONSOLIDAÇÃO!E:E,"X") -> 4 | F57: =COUNTIFS(CONSOLIDAÇÃO!C:C,"EM - EDUCAÇÃO FÍSICA",CONSOLIDAÇÃO!F:F,"X") -> 1
C58: Filosofia | D58: 16 | E58: =COUNTIFS(CONSOLIDAÇÃO!C:C,"EM - FILOSOFIA",CONSOLIDAÇÃO!E:E,"X") -> 2 | F58: =COUNTIFS(CONSOLIDAÇÃO!C:C,"EM - FILOSOFIA",CONSOLIDAÇÃO!F:F,"X") -> 0
C59: Física | D59: 53 | E59: =COUNTIFS(CONSOLIDAÇÃO!C:C,"EM - FÍSICA",CONSOLIDAÇÃO!E:E,"X") -> 0 | F59: =COUNTIFS(CONSOLIDAÇÃO!C:C,"EM - FÍSICA",CONSOLIDAÇÃO!F:F,"X") -> 2
C60: Geografia | D60: 25 | E60: =COUNTIFS(CONSOLIDAÇÃO!C:C,"EM - GEOGRAFIA",CONSOLIDAÇÃO!E:E,"X") -> 0 | F60: =COUNTIFS(CONSOLIDAÇÃO!C:C,"EM - GEOGRAFIA",CONSOLIDAÇÃO!F:F,"X") -> 0
C61: História | D61: 48 | E61: =COUNTIFS(CONSOLIDAÇÃO!C:C,"EM - HISTÓRIA",CONSOLIDAÇÃO!E:E,"X") -> 0 | F61: =COUNTIFS(CONSOLIDAÇÃO!C:C,"EM - HISTÓRIA",CONSOLIDAÇÃO!F:F,"X") -> 0
C62: Língua Estrangeira | D62: 16 | E62: =COUNTIFS(CONSOLIDAÇÃO!C:C,"EM - LÍNGUA ESTRANGEIRA",CONSOLIDAÇÃO!E:E,"X") -> 2 | F62: =COUNTIFS(CONSOLIDAÇÃO!C:C,"EM - LÍNGUA ESTRANGEIRA",CONSOLIDAÇÃO!F:F,"X") -> 1
C63: Língua Portuguesa | D63: 76 | E63: =COUNTIFS(CONSOLIDAÇÃO!C:C,"EM - LÍNGUA PORTUGUESA",CONSOLIDAÇÃO!E:E,"X") -> 0 | F63: =COUNTIFS(CONSOLIDAÇÃO!C:C,"EM - LÍNGUA PORTUGUESA",CONSOLIDAÇÃO!F:F,"X") -> 0
C64: Matemática | D64: 56 | E64: =COUNTIFS(CONSOLIDAÇÃO!C:C,"EM - MATEMÁTICA",CONSOLIDAÇÃO!E:E,"X") -> 0 | F64: =COUNTIFS(CONSOLIDAÇÃO!C:C,"EM - MATEMÁTICA",CONSOLIDAÇÃO!F:F,"X") -> 0
C65: Química | D65: 40 | E65: =COUNTIFS(CONSOLIDAÇÃO!C:C,"EM - QUÍMICA",CONSOLIDAÇÃO!E:E,"X") -> 0 | F65: =COUNTIFS(CONSOLIDAÇÃO!C:C,"EM - QUÍMICA",CONSOLIDAÇÃO!F:F,"X") -> 0
C66: Sociologia | D66: 36 | E66: =COUNTIFS(CONSOLIDAÇÃO!C:C,"EM - SOCIOLOGIA",CONSOLIDAÇÃO!E:E,"X") -> 12 | F66: =COUNTIFS(CONSOLIDAÇÃO!C:C,"EM - SOCIOLOGIA",CONSOLIDAÇÃO!F:F,"X") -> 5
C67: TOTAL DA ÁREA | D67: =SUM(D55:D66) -> 536 | E67: =SUM(E55:E66) -> 31 | F67: 10
D68: =E67/D67 -> 0.0578358209 | F68: =F67/D67 -> 0.01865671642
B69: TOTAL DE OBJETIVOS DE APRENDIZAGEM | C69: =SUM(D67,D53,D42,D32,D22,D15,D8) -> 1940 | D69: Porcentagem de objetivos indicados por problemas de CLAREZA | E69: =SUM(E67,E53,E42,E32,E22,E15,E8) -> 175 | F69: =SUM(F67,F53,F42,F32,F22,F15,F8) -> 183
D70: Porcentagem de objetivos indicados por problemas de PERTINÊNCIA | E70: =E69/C69 -> 0.09020618557 | F70: =F69/C69 -> 0.09432989691
